Workbook

Sheet Disclaimer
C19: Short / Leveraged ETP/ETF Simulator

Sheet Compounding Simulator
A1: Short / Leveraged ETP Simulator
H3: Leverage Factor | I3: 3
C6: Start | D6: Day 1 | E6: Day 2 | F6: Day 3 | G6: Day 4 | H6: Day 5 | I6: Day 6 | J6: Day 7 | K6: Day 8 | L6: Day 9 | M6: Day 10 | N6: Day 11
A7: Index
A8: Value at start of day | D8: =C10 -> 100 | E8: =D10 -> 102 | F8: =E10 -> 104.04 | G8: =F10 -> 106.1208 | H8: =G10 -> 108.243216 | I8: =H10 -> 110.4080803 | J8: 112.6162419 | K8: 114.8685668 | L8: 117.1659381 | M8: 119.5092569 | N8: 121.899442
A9: Daily return | D9: 0.02 | E9: 0.02 | F9: 0.02 | G9: 0.02 | H9: 0.02 | I9: 0.02 | J9: 0.02 | K9: 0.02 | L9: 0.02 | M9: 0.02 | N9: 0.02
A10: Value at end of day | C10: 100 | D10: =D8*(1+D9) -> 102 | E10: =E8*(1+E9) -> 104.04 | F10: =F8*(1+F9) -> 106.1208 | G10: =G8*(1+G9) -> 108.243216 | H10: =H8*(1+H9) -> 110.4080803 | I10: =I8*(1+I9) -> 112.6162419 | J10: 114.8685668 | K10: 117.1659381 | L10: 119.5092569 | M10: =M8*(1+M9) -> 121.899442 | N10: =N8*(1+N9) -> 124.3374308
A11: Cumulative return | B11: Index | C11: 0 | D11: =(D10/$D$8)-1 -> 0.02 | E11: =(E10/$D$8)-1 -> 0.0404 | F11: 0.061208 | G11: 0.08243216 | H11: 0.1040808032 | I11: 0.1261624193 | J11: 0.1486856676 | K11: 0.171659381 | L11: 0.1950925686 | M11: 0.21899442 | N11: 0.2433743084
A12: =" "&IF(($I$3>1),"Leveraged ETP",IF(($I$3<0),"Short ETP")) -> Leveraged ETP
A13: Price at start of day | D13: =C15 -> 100 | E13: =D15 -> 106 | F13: =E15 -> 112.36 | G13: =F15 -> 119.1016 | H13: =G15 -> 126.247696 | I13: =H15 -> 133.8225578 | J13: 141.8519112 | K13: 150.3630259 | L13: 159.3848075 | M13: 168.9478959 | N13: 179.0847697
A14: Daily return | D14: =MAX(-1,D9*$I$3) -> 0.06 | E14: =MAX(-1,E9*$I$3) -> 0.06 | F14: 0.06 | G14: 0.06 | H14: 0.06 | I14: 0.06 | J14: 0.06 | K14: 0.06 | L14: 0.06 | M14: =MAX(-1,M9*$I$3) -> 0.06 | N14: =MAX(-1,N9*$I$3) -> 0.06
A15: Price at end of day | C15: 100 | D15: =D13*(1+D14) -> 106 | E15: =E13*(1+E14) -> 112.36 | F15: =F13*(1+F14) -> 119.1016 | G15: =G13*(1+G14) -> 126.247696 | H15: =H13*(1+H14) -> 133.8225578 | I15: =I13*(1+I14) -> 141.8519112 | J15: 150.3630259 | K15: 159.3848075 | L15: 168.9478959 | M15: 179.0847697 | N15: 189.8298558
A16: Cumulative return | B16: =IF(($I$3>1),"Leveraged ETP",IF(($I$3<0),"Short ETP")) -> Leveraged ETP | C16: 0 | D16: =(D15/$D$13)-1 -> 0.06 | E16: =(E15/$D$13)-1 -> 0.1236 | F16: =(F15/$D$13)-1 -> 0.191016 | G16: =(G15/$D$13)-1 -> 0.26247696 | H16: =(H15/$D$13)-1 -> 0.3382255776 | I16: =(I15/$D$13)-1 -> 0.4185191123 | J16: 0.503630259 | K16: 0.5938480745 | L16: 0.689478959 | M16: 0.7908476965 | N16: 0.8982985583
C38: Please contact Boost ETP LLP at +44 20 3515 0050 if you have any questions

Sheet Background Data (hidden)
A1: ETP returns | B1: ETP Leverage factors
A2: 0.1 | B2: 5 | E2: Return to capital loss | G2: =-100%/'Compounding Simulator'!$I$3 -> -0.3333333333
A3: 0.05 | B3: 4 | E3: Return before restrike threshold | G3: 0.1666
A4: 0.03 | B4: 3 | E4: Therefore, ETP return must be between | G4: =IF('Compounding Simulator'!$I$3>0,MAX(G2:G3),MIN(G2:G3)) -> 0.1666 | H4: and | I4: =-G4 -> -0.1666
A5: 0.02 | B5: 2 | E5: Or, in order: | G5: =MIN(G4,I4) -> -0.1666 | H5: and | I5: =MAX(G4,I4) -> 0.1666
A6: 0.01 | B6: -1
A7: 0 | B7: -2
A8: -0.01 | B8: -3
A9: -0.02 | B9: -4
A10: -0.03 | B10: -5
A11: -0.05
A12: -0.1
